bitfinex-derivatives/quotes_ETHF0:USTF0_20240830
["timestamp","ask_amount","ask_price","bid_price","bid_amount"]
[1725041432033,12.94786473,2470.6,2470.2,1.3894]
[1725041432237,8.89986473,2470.6,2470.5,0.40479]
[1725041432737,12.94786473,2470.6,2470.5,0.40479]
[1725041433528,12.54307473,2470.6,2470.5,0.40479]
[1725041433729,12.94785473,2470.6,2470.5,0.40479]
[1725041433935,8.49507473,2470.6,2470.5,0.40479]
[1725041434136,4.62177473,2470.6,2470.5,0.40479]
[1725041434332,0.00607607,2470.7,2470.6,0.40478]
[1725041436232,0.41083607,2470.7,2470.6,0.40478]
[1725041436544,4.33841279,2470.7,2470.6,0.40478]
[1725041437134,4.74317279,2470.7,2470.6,0.40478]
[1725041437342,12.60532279,2470.7,2470.4,0.40479]
[1725041437531,4.27258,2470.6,2470.5,0.40479]
[1725041437731,0.40479,2470.5,2470.4,0.4048]
[1725041437928,0.76569,2470.5,2470.4,0.4048]
[1725041438233,0.40483,2470.3,2470.1,3.2078]
[1725041438547,4.8804614,2470.2,2470.1,3.61266]
[1725041439529,4.8804614,2470.2,2470.1,0.40486]
[1725041439734,0.40487,2470.1,2469.8,1.04855858]
[1725041439943,9.9405714,2470.2,2470.1,1.41701]
[1725041439944,4.5240614,2470.2,2470.1,1.41701]
[1725041440335,1.12209,2470.5,2470.4,0.40481]
[1725041440639,4.18684979,2470.5,2470.4,0.40481]
[1725041440838,4.18684979,2470.5,2470.4,2.42887]
[1725041442343,4.18684979,2470.5,2470.4,2.84014271]
[1725041442642,4.18684979,2470.5,2470.4,2.84014177]
[1725041444142,4.18684979,2470.5,2470.4,3.43658771]
[1725041444943,3.2078,2471.3,2471.2,0.40468]
[1725041445137,3.40602982,2471.3,2471.2,0.40468]
[1725041445335,0.40468,2471.2,2471.1,0.40468]
[1725041445743,4.65464792,2471.2,2471.1,0.40468]
[1725041445943,4.24996792,2471.2,2471.1,0.40468]
[1725041446137,4.65464792,2471.2,2471.1,0.40468]
[1725041446334,5.04634792,2471.2,2471.1,0.40468]
[1725041446948,4.64166792,2471.2,2471.1,0.40468]
[1725041449442,5.04634792,2471.2,2471.0,0.4047]
[1725041449643,0.40471,2471.0,2470.9,0.00607607]
[1725041449846,3.90471,2471.0,2470.9,0.00607607]
[1725041450143,12.56850046,2471.0,2470.9,0.00607607]
[1725041451641,12.16379046,2471.0,2470.9,0.00607607]
[1725041451850,12.16379046,2471.0,2470.9,0.41080607]
[1725041452145,4.61659046,2471.0,2470.9,0.41080607]
[1725041452651,4.29638,2471.2,2471.0,0.4047]
[1725041452842,8.34278,2471.2,2471.0,0.4047]
[1725041453043,4.28490955,2471.1,2471.0,0.4047]
[1725041453434,4.28490955,2471.1,2470.9,0.00607607]
[1725041453435,8.73680955,2471.1,2470.9,0.41079607]
[1725041453639,4.28490955,2471.1,2471.0,0.40471]
[1725041453853,0.40471,2471.0,2470.9,0.00607607]
[1725041454040,7.95191,2471.0,2470.9,0.00607607]
[1725041454239,12.64494437,2471.0,2470.9,0.00607607]
[1725041456742,8.19303437,2471.0,2470.9,0.41080607]
[1725041457743,8.19303437,2471.0,2470.9,0.00607607]
[1725041458049,8.80469357,2471.0,2470.9,0.00607607]
[1725041458553,12.85189357,2471.0,2470.9,0.00607607]
[1725041459952,13.86367357,2471.0,2470.9,0.00607607]
[1725041460252,13.86367357,2471.0,2470.6,1.45552239]
[1725041460253,12.44718357,2471.0,2470.6,0.40477]
[1725041460455,1.14324,2470.9,2470.7,0.81603147]
[1725041460638,1.34827537,2470.9,2470.7,0.40475]
[1725041460843,4.45356962,2470.8,2470.6,1.05076239]
[1725041461051,4.85830962,2470.8,2470.7,0.81602456]
[1725041461448,8.50076962,2470.8,2470.7,0.81602456]
[1725041461653,4.45356962,2470.8,2470.7,0.8160383]
[1725041461859,8.50076962,2470.8,2470.7,0.8160383]
[1725041462153,9.51263962,2470.8,2470.5,1.05076239]
[1725041462452,0.40479,2470.5,2470.4,1.05076239]
[1725041462652,7.11259,2470.5,2470.4,0.41131046]
[1725041462855,7.11259,2470.5,2470.3,1.05076239]
[1725041462856,0.40481,2470.4,2470.3,1.05076239]
[1725041463152,0.40481,2470.4,2470.2,1.05076239]
[1725041463153,0.40482,2470.3,2470.2,1.05076239]
[1725041463356,0.40482,2470.3,2470.2,2.464389]
[1725041463557,4.89214611,2470.3,2470.2,2.059549]
[1725041464243,4.48732611,2470.3,2470.2,0.81618139]
[1725041464452,4.48732611,2470.3,2470.2,2.46439111]
[1725041465056,4.2977,2470.5,2470.4,0.40481]
[1725041465458,8.64545626,2470.5,2470.3,0.40481]
[1725041465658,8.84925963,2470.5,2470.3,0.40481]
[1725041465865,8.84925963,2470.5,2470.4,0.40481]
[1725041466162,8.84925963,2470.5,2470.3,0.40481]
[1725041466368,8.84925963,2470.5,2470.4,0.40481]
[1725041466769,7.84775626,2470.5,2470.4,0.40481]
[1725041467070,7.84775626,2470.5,2470.4,0.81613644]
[1725041467266,8.25254626,2470.5,2470.4,0.41132644]
[1725041467459,0.40481,2470.4,2470.3,0.40482]
[1725041467657,0.40481,2470.4,2470.3,1.41348721]
[1725041467861,4.68673193,2470.4,2470.3,1.41348721]
[1725041468060,16.75879193,2470.4,2470.3,0.48231785]
[1725041468263,0.40486,2470.1,2470.0,1.05076239]
[1725041468465,0.40487,2470.0,2469.9,1.05387935]
[1725041468666,0.40491,2469.8,2469.7,1.05387935]
[1725041468869,0.40491,2469.8,2469.7,1.65133442]
[1725041469068,4.60002993,2469.8,2469.7,1.65133442]
[1725041469372,4.60002993,2469.8,2469.7,2.29683895]
[1725041469962,4.60002993,2469.8,2469.7,2.05625442]
[1725041470367,4.60002993,2469.8,2469.7,1.00237507]
[1725041470568,4.60002993,2469.8,2469.7,0.59745507]
[1725041470765,5.00493993,2469.8,2469.7,0.59745507]
[1725041470974,5.40063993,2469.8,2469.7,0.59732747]
[1725041471174,0.80061,2469.8,2469.6,1.45880935]
[1725041471363,5.02724042,2469.8,2469.6,1.45880935]
[1725041471558,5.02724042,2469.8,2469.7,0.40492]
[1725041471868,0.00607607,2470.0,2469.9,0.40489]
[1725041472273,4.30388704,2470.0,2469.9,0.40489]
[1725041472677,4.30388704,2470.0,2469.9,0.79989]
[1725041474673,4.30388704,2470.0,2469.9,0.40489]
[1725041476775,4.30388704,2470.0,2469.7,1.05387935]
[1725041477081,4.30388704,2470.0,2469.6,1.45880935]
[1725041477082,3.90492,2469.8,2469.6,1.45880935]
[1725041477277,3.90492,2469.8,2469.6,0.40493]
[1725041477479,4.43359865,2469.7,2469.6,0.40493]
[1725041478176,3.82594305,2469.7,2469.6,0.40493]
[1725041478868,3.23224305,2469.7,2469.6,0.40493]
[1725041479073,6.07e-06,2470.0,2469.9,2.42935]
[1725041479379,3.2078,2471.3,2471.2,0.40468]
[1725041479679,3.5,2471.8,2471.2,8.2659]
[1725041479879,1.01128,2472.3,2472.0,0.40455]
[1725041479880,6.7078,2472.3,2472.0,0.40455]
[1725041480074,6.7078,2472.3,2471.5,1.01158]
[1725041480075,4.47976384,2472.0,2471.5,1.01158]
[1725041480272,4.47976384,2472.1,2471.7,3.2078]
[1725041480487,0.00607607,2472.0,2471.9,0.40455]
[1725041480675,0.00607607,2472.0,2471.8,0.40457]
[1725041480876,4.62651181,2472.0,2471.8,0.40457]
[1725041481675,4.62651181,2472.0,2471.7,3.2078]
[1725041481676,4.62651181,2472.0,2471.7,3.61239]
[1725041482179,4.62651181,2472.0,2471.7,3.61238]
[1725041482878,4.62651181,2472.0,2471.8,0.40457]
[1725041483273,0.4046,2471.7,2471.5,0.00607607]
[1725041483469,0.40461,2471.6,2471.5,0.00607607]
[1725041483674,5.22298484,2471.6,2471.5,0.00607607]
[1725041483875,4.81891,2471.6,2471.5,0.00607607]
[1725041484285,12.64464253,2471.6,2471.5,0.00607607]
[1725041485376,0.40466,2471.3,2470.9,3.2078]
[1725041485582,3.90467,2471.3,2470.9,3.2078]
[1725041485785,4.52701302,2471.2,2470.9,3.2078]
[1725041486482,4.52701302,2471.2,2471.0,0.40471]
[1725041486881,4.2031213,2471.3,2470.9,3.61252]
[1725041487087,0.40465,2471.4,2470.9,3.61252]
[1725041487394,4.3043167,2471.3,2470.9,3.61252]
[1725041487684,4.3043167,2471.3,2471.0,0.40471]
[1725041487887,4.3043167,2471.3,2470.9,3.2078]
[1725041488086,4.3043167,2471.3,2470.9,3.61251]
[1725041488891,4.3043167,2471.3,2471.1,0.40469]
[1725041489384,4.28387731,2471.4,2471.1,0.40469]
[1725041489591,0.78413,2471.5,2471.1,0.40469]
[1725041489889,4.28387731,2471.4,2471.1,0.40469]
[1725041490086,4.28387731,2471.4,2471.0,0.4047]
[1725041490885,0.40467,2471.3,2471.0,0.4047]
[1725041491290,4.46867894,2471.2,2471.0,0.4047]
[1725041491884,4.46867894,2471.2,2470.9,3.2078]
[1725041492085,0.40471,2471.0,2470.9,3.2078]
[1725041492586,4.68984207,2471.0,2470.9,3.2078]
[1725041493592,4.28513207,2471.0,2470.6,0.40477]
[1725041493787,0.96585183,2470.9,2470.6,0.40477]
[1725041493981,0.96585183,2470.9,2470.5,3.2078]
[1725041494182,0.96585183,2470.9,2470.7,0.40476]
[1725041494183,4.34734619,2470.8,2470.7,0.40476]
[1725041494690,3.61247,2471.3,2470.7,0.40476]
[1725041494691,0.40468,2471.2,2471.0,0.4047]
[1725041495087,4.85780792,2471.2,2471.0,0.4047]
[1725041495282,4.45312792,2471.2,2471.0,0.4047]
[1725041495485,4.45312792,2471.2,2471.1,0.40469]
[1725041496082,4.40443276,2471.3,2471.2,0.40468]
[1725041496399,0.62152682,2471.4,2471.2,0.40468]
[1725041496695,4.40443276,2471.3,2471.2,0.40468]
[1725041496887,4.40443276,2471.3,2471.1,0.40468]
[1725041497101,4.40443276,2471.3,2471.2,0.40468]
[1725041497490,0.3575,2471.5,2471.4,0.40464]
[1725041497689,0.76213,2471.5,2471.4,0.40464]
[1725041497989,5.33106995,2471.5,2471.4,0.40464]
[1725041498193,4.92643995,2471.5,2471.4,0.40464]
[1725041498989,1.01162,2471.4,2470.8,3.2078]
[1725041499184,0.40472,2471.0,2470.8,3.2078]
[1725041499386,0.7382,2470.9,2470.8,3.2078]
[1725041499591,0.7382,2470.9,2470.8,3.61254]
[1725041499592,4.92688064,2470.9,2470.8,3.61254]
[1725041499793,4.18868064,2470.9,2470.8,4.45194]
[1725041499995,1.14285,2471.4,2471.0,0.4047]
[1725041500192,0.40466,2471.3,2471.0,0.4047]
[1725041500388,4.61638002,2471.3,2470.9,0.40472]
[1725041500793,0.40468,2471.2,2470.9,0.40472]
[1725041501192,4.28220612,2471.1,2470.9,0.40472]
[1725041501395,4.68690612,2471.1,2470.8,3.2078]
[1725041501604,4.68690612,2471.1,2470.7,0.40475]
[1725041501806,4.66,2471.3,2470.5,3.2078]
[1725041501807,0.40474,2470.9,2470.5,3.2078]
[1725041502098,5.30360694,2470.8,2470.6,0.40477]
[1725041503197,5.30360694,2470.8,2470.5,3.2078]
[1725041503198,5.30360694,2470.8,2470.5,3.61258]
[1725041503403,5.30360694,2470.8,2470.6,0.40477]
[1725041503901,5.30360694,2470.8,2470.7,0.40476]
[1725041504304,5.30360694,2470.8,2470.7,4.45196]
[1725041504809,4.94610694,2470.8,2470.7,4.45196]
[1725041506392,4.94610694,2470.8,2470.7,0.40476]
[1725041507997,5.55332338,2470.8,2470.7,0.40476]
[1725041508203,5.14858338,2470.8,2470.6,3.2078]
[1725041508396,5.55334338,2470.8,2470.6,3.61257]
[1725041509693,5.35086694,2470.8,2470.7,0.40476]
[1725041509897,4.94610694,2470.8,2470.7,0.40476]
[1725041510906,5.35084694,2470.8,2470.7,0.40476]
[1725041511303,4.94610694,2470.8,2470.7,0.40476]
[1725041512303,4.94610694,2470.8,2470.7,5.46386]
[1725041512702,4.94610694,2470.8,2470.7,4.45196]
[1725041513607,5.35084694,2470.8,2470.7,4.45196]
[1725041513816,5.35084694,2470.8,2470.7,0.40476]
[1725041514004,4.94610694,2470.8,2470.7,4.45196]
[1725041514499,5.35084694,2470.8,2470.7,4.45196]
[1725041514907,5.35084694,2470.8,2470.7,0.40476]
[1725041515108,5.31430694,2470.8,2470.7,4.45196]
[1725041515502,4.94610694,2470.8,2470.7,4.45196]
[1725041516300,4.94610694,2470.8,2470.7,0.40476]
[1725041516499,4.94610694,2470.8,2470.7,1.41666]
[1725041517404,0.40472,2471.0,2470.7,1.41666]
[1725041517405,0.40472,2471.0,2470.9,0.40473]
[1725041517814,4.86179324,2471.0,2470.9,0.40473]
[1725041518707,5.21909324,2471.0,2470.9,0.40473]
[1725041519607,0.40474,2470.9,2470.8,0.40474]
[1725041519804,0.19746218,2470.9,2470.8,0.40474]
[1725041520004,4.2784988,2470.9,2470.8,0.40474]
[1725041520208,4.2784988,2470.9,2470.8,1.4166]
[1725041520600,4.2784988,2470.9,2470.8,5.4638]
[1725041520803,3.2078,2471.7,2471.6,0.40461]
[1725041521015,3.6124,2471.7,2471.6,0.40461]
[1725041521317,8.00810445,2471.7,2471.6,0.40461]
[1725041521616,7.60350445,2471.7,2471.2,1.05041598]
[1725041521809,7.60350445,2471.7,2471.1,8.94142397]
[1725041521810,3.5,2471.5,2471.1,4.158]
[1725041522017,0.7558,2471.4,2470.9,1.01182]
[1725041522217,0.7558,2471.4,2471.2,0.40467]
[1725041522218,0.40466,2471.3,2471.2,0.40467]
[1725041522709,0.40469,2471.2,2471.0,0.40471]
[1725041522912,0.4047,2471.1,2470.8,4.25821598]
[1725041523216,4.6348419,2471.1,2470.9,0.40471]
[1725041523416,4.6348419,2471.1,2471.0,0.40471]
[1725041523613,0.40473,2470.9,2470.8,3.2078]
[1725041523815,3.6993457,2470.9,2470.8,3.2078]
[1725041524014,8.2495342,2470.9,2470.8,3.2078]
[1725041524319,9.4063342,2470.9,2470.8,3.2078]
[1725041524518,5.7069885,2470.9,2470.8,3.2078]
[1725041524812,1.01155,2471.6,2470.8,3.2078]
[1725041524813,0.21656223,2471.4,2470.8,10.93323109]
[1725041525015,0.77776,2471.3,2470.9,4.08610665]
[1725041525207,4.56234725,2471.1,2471.0,0.40471]
[1725041525411,0.40469,2471.2,2470.9,1.45775564]
[1725041525608,0.3754,2471.0,2470.9,1.45775564]
[1725041525809,0.3754,2471.0,2470.9,1.86889201]
[1725041526011,4.40979201,2471.0,2470.9,5.91609201]
[1725041526210,0.3754,2471.0,2470.9,6.51343454]
[1725041526409,0.3754,2471.0,2470.9,8.53779913]
[1725041526610,0.3754,2471.0,2470.9,6.51343454]
[1725041527016,0.3754,2471.0,2470.9,8.53781639]
[1725041527215,0.3731,2471.3,2471.2,0.40468]
[1725041527410,0.7485,2471.3,2471.2,0.40468]
[1725041527607,5.10197599,2471.3,2471.2,0.40468]
[1725041528013,5.10197599,2471.3,2471.0,1.05335918]
[1725041528014,5.50663599,2471.3,2471.1,0.40469]
[1725041528220,5.50663599,2471.3,2471.0,1.45805918]
[1725041528422,5.10197599,2471.3,2471.1,1.86915853]
[1725041528722,0.40468,2471.2,2471.0,1.45805918]
[1725041528909,5.50664599,2471.3,2471.1,1.46448502]
[1725041529220,1.15317,2471.3,2471.2,0.41112492]
[1725041529623,5.45618873,2471.3,2471.2,0.41112332]
[1725041530821,5.05151873,2471.3,2471.2,0.81580332]
[1725041531819,5.05151873,2471.3,2471.2,1.412551]
[1725041532023,0.3731,2471.3,2471.2,9.11118371]
[1725041532224,0.3731,2471.3,2471.2,9.70780146]
[1725041532719,0.3731,2471.3,2471.2,10.57416555]
[1725041532925,0.3731,2471.3,2471.2,10.5739136]
[1725041533119,0.3731,2471.3,2471.2,11.5856136]
[1725041533325,0.3731,2471.3,2471.2,11.5856271]
[1725041533519,0.3947,2471.5,2471.4,0.40464]
[1725041533727,0.3947,2471.5,2471.4,2.4644189]
[1725041533920,3.5,2472.1,2471.9,0.40456]
[1725041534132,0.37237607,2472.0,2471.9,0.40456]
[1725041534425,4.59484273,2472.0,2471.9,0.81556638]
[1725041534823,4.59484273,2472.0,2471.9,1.82697638]
[1725041535019,0.00607607,2472.0,2471.9,22.09160033]
[1725041535226,0.00607607,2472.0,2471.9,25.35657532]
[1725041535529,0.00607607,2472.0,2471.9,26.37191585]
[1725041535714,0.00607607,2472.0,2471.9,28.47045309]
[1725041535920,0.00607607,2472.0,2471.9,27.45521803]
[1725041536119,0.00607607,2472.0,2471.9,22.61195752]
[1725041536329,0.00607607,2472.0,2471.9,26.65844807]
[1725041536523,0.00607607,2472.0,2471.9,17.99648498]
[1725041536732,0.00607607,2472.0,2471.9,20.51270885]
[1725041536935,0.00607607,2472.0,2471.9,21.22043554]
[1725041537124,0.00607607,2472.0,2471.9,19.64770827]
[1725041537327,0.00607607,2472.0,2471.9,19.64742911]
[1725041537521,0.00607607,2472.0,2471.9,20.51207034]
[1725041537716,0.00607607,2472.0,2471.9,21.21868859]
[1725041537922,0.00233642,2472.0,2471.9,21.21868859]
[1725041538122,0.00233642,2472.0,2471.9,19.64742911]
[1725041538322,0.00233642,2472.0,2471.9,21.21843243]
[1725041538624,6.42e-06,2472.0,2471.9,21.21740816]
[1725041538826,0.3797,2472.6,2472.5,0.40446]
[1725041539018,0.3797,2472.6,2472.5,1.41563]
[1725041539328,0.212053,2473.0,2472.9,0.4044]
[1725041539329,0.3574,2473.0,2472.9,0.4044]
[1725041539530,0.3574,2473.0,2472.9,1.4154]
[1725041539828,6.07e-06,2473.2,2473.1,2.42619]
[1725041540030,6.07e-06,2473.2,2473.1,10.18046712]
[1725041540226,6.07e-06,2473.2,2473.1,20.18219007]
[1725041540432,0.3574,2474.1,2473.6,1.01071]
[1725041540631,0.3574,2474.1,2474.0,0.40422]
[1725041540934,0.3574,2474.1,2474.0,4.44582]
[1725041541124,0.3574,2474.1,2473.5,6.7078]
[1725041541125,4.74431535,2474.1,2473.5,6.7078]
[1725041541434,0.41028367,2474.0,2473.7,0.40426]
[1725041541734,4.38691535,2473.9,2473.7,0.40426]
[1725041542029,4.38691535,2473.9,2473.5,3.61209]
[1725041542030,0.40425,2473.8,2473.5,3.61209]
[1725041542330,4.41087299,2473.7,2473.6,0.40428]
[1725041542733,0.3673,2473.9,2473.8,0.40425]
[1725041543032,4.47809242,2473.8,2473.7,0.40426]
[1725041543429,0.3673,2473.9,2473.7,0.40426]
[1725041543629,0.3673,2473.9,2473.6,0.40427]
[1725041543630,4.47809242,2473.8,2473.6,0.40427]
[1725041543844,4.47809242,2473.8,2473.7,0.40427]
[1725041544028,4.47809242,2473.8,2473.6,0.40427]
[1725041544529,4.88234242,2473.8,2473.5,3.2078]
[1725041544826,4.88234242,2473.8,2473.5,3.6121]
[1725041545229,4.88235242,2473.8,2473.5,3.2078]
[1725041545532,0.40427,2473.7,2473.5,3.2078]
[1725041545826,4.47809242,2473.8,2473.5,3.61209]
[1725041545827,4.48497072,2473.6,2473.5,3.61209]
[1725041546220,4.65673525,2473.7,2473.5,3.61209]
[1725041546427,0.40425,2473.8,2473.5,3.61209]
[1725041546627,5.06098525,2473.8,2473.5,3.61209]
[1725041546824,0.3673,2473.9,2473.5,3.2078]
[1725041547130,4.4002138,2473.7,2473.5,3.2078]
[1725041547328,0.40427,2473.7,2473.5,3.2078]
[1725041547629,4.4002138,2473.6,2473.5,3.6121]
[1725041548031,4.4002138,2473.7,2473.5,3.6121]
[1725041548238,4.4002138,2473.7,2473.5,3.2078]
[1725041548239,0.40427,2473.7,2473.5,3.2078]
[1725041548432,0.40426,2473.8,2473.5,3.6121]
[1725041548636,3.74849888,2473.7,2473.6,7.94668]
[1725041548844,0.22394684,2474.0,2473.9,1.0106]
[1725041549131,0.22394684,2474.0,2473.9,9.13324]
[1725041549432,0.22394684,2474.0,2473.9,19.17564]
[1725041549636,0.00606367,2474.0,2473.9,19.17564]
[1725041551937,0.00606367,2474.0,2473.9,12.16504]
[1725041552329,0.00606367,2474.0,2473.9,13.17564]
[1725041552838,0.00606367,2474.0,2473.9,12.16504]
[1725041553733,0.00606367,2474.0,2473.9,11.15444]
[1725041554937,0.00606367,2474.0,2473.9,12.16504]
[1725041555440,0.00606367,2474.0,2473.9,13.17564]
[1725041557336,0.00606367,2474.0,2473.9,8.66504]
[1725041557837,0.00606367,2474.0,2473.9,12.16504]
[1725041558043,0.00606367,2474.0,2473.9,13.17564]
[1725041558345,0.00606367,2474.0,2473.9,12.16504]
[1725041558543,0.00606367,2474.0,2473.9,13.17564]
[1725041560744,0.00606367,2474.0,2473.9,12.16504]
[1725041561043,0.00606367,2474.0,2473.9,3.61204]
[1725041561249,4.64215071,2474.0,2473.9,3.61204]
[1725041561432,4.64215071,2474.0,2473.7,0.40426]
[1725041561433,0.40427,2473.8,2473.7,0.40426]
[1725041561629,0.40425,2473.9,2473.8,0.40424]
[1725041562027,8.67851704,2473.9,2473.8,0.40424]
[1725041562733,8.67851704,2473.9,2473.6,3.2078]
[1725041562734,0.40427,2473.8,2473.7,0.40426]
[1725041563137,8.98675974,2473.8,2473.7,0.40426]
[1725041564241,4.54008974,2473.8,2473.7,0.40426]
[1725041564439,4.54008974,2473.8,2473.7,1.41494]
[1725041564639,4.54008974,2473.8,2473.6,4.21851]
[1725041564640,0.366,2473.9,2473.8,0.40425]
[1725041565047,0.40427,2473.8,2473.7,0.40426]
[1725041565442,4.7815267,2473.8,2473.7,0.40426]
[1725041565946,0.40428,2473.7,2473.6,0.40427]
[1725041566341,4.7815167,2473.8,2473.7,0.40427]
[1725041567245,4.3772567,2473.8,2473.7,0.40427]
[1725041569139,0.00606367,2474.0,2473.9,2.42544]
[1725041569345,0.00155564,2474.0,2473.9,5.63324]
[1725041569650,0.00155564,2474.0,2473.9,15.67564]
[1725041569853,0.3857,2474.5,2474.4,0.40415]
[1725041570147,4.97469426,2474.5,2474.4,0.40415]
[1725041570852,0.3857,2474.5,2474.4,1.41454]
[1725041573244,0.3857,2474.5,2474.4,0.40415]
[1725041573749,0.78984,2474.5,2474.4,0.40415]
[1725041573953,9.18892102,2474.5,2474.4,0.40415]
[1725041574946,9.79515102,2474.5,2474.2,0.00606367]
[1725041575149,9.79515102,2474.5,2474.2,0.41023367]
[1725041575150,0.40417,2474.3,2474.2,0.41023367]
[1725041575346,0.76426,2474.4,2474.3,0.40417]
[1725041575750,4.66088123,2474.4,2474.3,0.40417]
[1725041576045,5.06503123,2474.4,2474.3,0.40417]
[1725041576243,4.66088123,2474.4,2474.3,0.40417]
[1725041576657,9.10663123,2474.4,2474.3,0.40417]
[1725041577449,1.4146,2474.3,2474.2,0.00606367]
[1725041577755,9.90191244,2474.3,2474.2,0.00606367]
[1725041579056,8.89148244,2474.3,2474.2,0.41025367]
[1725041580157,8.48731244,2474.3,2474.2,0.41025367]
[1725041580545,4.44571244,2474.3,2474.2,0.41025367]
[1725041581055,4.84988244,2474.3,2474.2,0.41025367]
[1725041581260,4.44571244,2474.3,2474.2,0.82089127]
[1725041581849,4.44571244,2474.3,2474.2,1.83136127]
[1725041582051,4.44571244,2474.3,2474.2,0.41025367]
[1725041582264,4.44571244,2474.3,2474.2,0.82088736]
[1725041582860,4.84988244,2474.3,2474.2,0.82088736]
[1725041583054,4.44571244,2474.3,2474.2,0.82088736]
[1725041584275,4.44571244,2474.3,2474.2,1.46526733]
[1725041584276,4.84988244,2474.3,2474.2,1.46526733]
[1725041585063,4.84988244,2474.3,2474.2,1.46531332]
[1725041586771,5.23458244,2474.3,2474.2,1.46531332]
[1725041587454,10.28661244,2474.3,2474.2,1.06112332]
[1725041587656,0.40424,2474.0,2473.9,0.40423]
[1725041587867,0.40424,2474.0,2473.9,1.45940466]
[1725041588069,10.38982543,2474.0,2473.9,1.05517466]
[1725041588256,0.40425,2473.9,2473.7,0.40426]
[1725041588463,0.40425,2473.9,2473.8,0.81484995]
[1725041588464,0.3917,2473.9,2473.8,0.81484995]
[1725041588666,0.3579,2474.0,2473.9,0.40424]
[1725041588969,4.86381584,2474.0,2473.9,0.81481661]
[1725041591260,4.86381584,2474.0,2473.9,0.40424]
[1725041591661,5.26803584,2474.0,2473.8,0.40424]
[1725041591962,4.86381584,2474.0,2473.7,0.40426]
[1725041592172,0.40425,2473.9,2473.8,0.41057366]
[1725041592470,5.00957809,2473.9,2473.7,0.40425]
[1725041592860,0.40425,2473.8,2473.7,0.40425]
[1725041593061,0.40425,2473.8,2473.7,0.81482485]
[1725041593262,4.88916479,2473.8,2473.7,0.81482485]
[1725041593465,12.53306479,2473.8,2473.7,0.41057485]
[1725041593861,0.40427,2473.7,2473.6,0.00606367]
[1725041594067,0.40427,2473.7,2473.6,0.41667561]
[1725041594264,8.83076439,2473.7,2473.6,0.41667561]
[1725041595059,8.42649439,2473.7,2473.6,4.32095561]
[1725041595265,4.38409439,2473.7,2473.6,6.39165193]
[1725041595470,4.38409439,2473.7,2473.6,6.98539976]
[1725041595770,4.38409439,2473.7,2473.6,9.00740121]
[1725041596076,4.38409439,2473.7,2473.6,6.59399976]
[1725041597563,4.38409439,2473.7,2473.6,4.32091606]
[1725041597767,4.88160208,2473.8,2473.7,0.40427]
[1725041597971,0.40426,2473.8,2473.7,0.81484239]
[1725041598164,5.00301445,2473.8,2473.7,0.81484239]
[1725041598671,5.00301445,2473.8,2473.6,3.50606367]
[1725041598672,0.40427,2473.7,2473.6,3.91033367]
[1725041598868,4.59875445,2473.8,2473.6,4.32092332]
[1725041599172,0.40427,2473.7,2473.6,0.41033367]
[1725041599368,0.40427,2473.7,2473.6,0.82093149]
[1725041599569,4.98025571,2473.7,2473.6,0.82093149]
[1725041599777,9.02265571,2473.7,2473.6,0.82094149]
[1725041600464,9.02265571,2473.7,2473.6,0.41666149]
[1725041600661,9.02265571,2473.7,2473.6,0.82094149]
[1725041601075,4.57598571,2473.7,2473.6,9.37406149]
[1725041601269,0.3579,2474.0,2473.9,0.40424]
[1725041601675,5.03481343,2474.0,2473.9,0.40424]
[1725041603274,5.03481343,2474.0,2473.9,0.8148082]
[1725041603676,5.43903343,2474.0,2473.9,0.8148082]
[1725041603880,5.43903343,2474.0,2473.9,0.40424]
[1725041605775,9.48143343,2474.0,2473.9,0.40424]
[1725041605972,9.48143343,2474.0,2473.8,0.40424]
[1725041605973,0.40425,2473.9,2473.8,0.40424]
[1725041606174,0.40425,2473.9,2473.8,0.81481073]
[1725041606375,4.77527974,2473.9,2473.8,0.81481073]
[1725041606774,4.77527974,2473.9,2473.8,0.41057073]
[1725041608779,3.59017974,2473.9,2473.8,0.41057073]
[1725041608983,0.40383,2476.4,2475.3,2.02004]
[1725041609172,0.40383,2476.4,2475.1,45.7668]
[1725041609173,0.3897,2476.4,2476.0,3.5]
[1725041609371,0.3897,2476.4,2476.3,3.5]
[1725041609576,0.3897,2476.4,2476.3,7.11164]
[1725041609880,4.4281,2476.4,2476.0,1.04495773]
[1725041610082,8.27113411,2476.4,2476.0,0.00606367]
[1725041610289,0.40388,2476.1,2476.0,0.00606367]
[1725041610585,4.42764791,2476.1,2476.0,0.00606367]
[1725041610882,4.0384,2476.1,2476.0,0.00606367]
[1725041611276,8.71131036,2476.1,2476.0,0.00606367]
[1725041611682,9.11519036,2476.1,2476.0,0.00606367]
[1725041611879,8.71131036,2476.1,2476.0,0.00606367]
[1725041612274,9.11519036,2476.1,2476.0,0.00606367]
[1725041612670,14.71131036,2476.1,2475.6,0.40395]
[1725041612986,4.67291036,2476.1,2475.8,0.40392]
[1725041613279,8.71211036,2476.1,2475.7,3.61173]
[1725041613483,4.67291036,2476.1,2475.8,0.40392]
[1725041613690,4.67291036,2476.1,2475.7,3.61779367]
[1725041613880,4.67291036,2476.1,2475.8,0.40392]
[1725041614180,4.67291036,2476.1,2475.7,6.71386367]
[1725041614487,4.20575974,2476.2,2476.0,0.40389]
[1725041614980,0.7625,2476.3,2475.9,0.4039]
[1725041615179,0.7625,2476.3,2476.0,0.40389]
[1725041615180,4.20575974,2476.2,2476.0,0.40389]
[1725041615378,4.20575974,2476.2,2475.7,6.71386367]
[1725041615580,4.20575974,2476.2,2475.9,0.4039]
[1725041616085,4.20575974,2476.2,2476.0,0.40389]
[1725041616276,4.20575974,2476.2,2475.9,0.4039]
[1725041616782,4.20575974,2476.2,2476.1,0.40388]
[1725041617080,4.20575974,2476.2,2476.0,0.40388]
[1725041617284,4.20575974,2476.2,2476.1,3.61168]
[1725041617680,8.24415974,2476.2,2476.1,3.61168]
[1725041617878,8.24415974,2476.2,2476.1,3.2078]
[1725041618077,3.36157974,2476.2,2476.1,12.15978]
[1725041618278,0.00606367,2476.4,2476.3,1.41346]
[1725041618478,0.00606367,2476.4,2476.3,3.90384]
[1725041618685,0.00606367,2476.4,2476.3,7.94224]
[1725041619186,0.00606367,2476.4,2476.3,8.95186]
[1725041619387,0.7353,2477.2,2476.3,8.95186]
[1725041619388,0.3648,2477.2,2476.3,14.95186]
[1725041619588,0.3648,2477.2,2477.0,3.2078]